[Event "Asian Continental-ch Open 2019"]
[Site "XingTai"]
[Date "2019.06.13"]
[Round "7.16"]
[White "Vignesh N R"]
[Black "Wan, Yunguo"]
[Result "1-0"]
[ECO "B30"]
[WhiteElo "2459"]
[BlackElo "2531"]
[Annotator "RC"]
[PlyCount "63"]
[EventDate "2019.06.06"]
[EventType "swiss"]
[EventCountry "CHN"]
[SourceTitle "playchess.com"]
[Source "ChessBase"]
[SourceQuality "1"]
[TimeControl "40/5400+30:1800+30"]

1. e4 {[%emt 0:00:00]} c5 {[%emt 0:02:42]} 2. Nf3 {[%emt 0:00:00]} Nc6 {[%emt 0:00:24]} 3. Nc3 {[%emt 0:00:00]} Nf6 {[%emt 0:03:34]} 4. Bb5 {[%emt 0:00:00]} Nd4 {[%emt 0:00:43]} 5. e5 {[%emt 0:01:30]} Nxb5 {[%emt 0:00:30]} 6. Nxb5 {[%emt 0:00:07]} Nd5 {[%emt 0:00:07]} 7. Ng5 {[%emt 0:00:30]} f5 {[%emt 0:02:44]} 8. O-O {[%emt 0:06:09]} a6 {[%emt 0:14:49]} 9. Nc3 {[%emt 0:08:07]} Nxc3 {[%emt 0:02:30]} 10. dxc3 {[%emt 0:03:09]} e6 {[%emt 0:00:23]} 11. Qf3 {[%emt 0:08:36]} Be7 {[%emt 0:02:42]} 12. Qh5+ {[%emt 0:06:26]} g6 {[%emt 0:00:07]} 13. Qh6 {[%emt 0:00:04]} Bf8 {[%emt 0:00:25]} 14. Qh3 {[%emt 0:00:08]} Be7 {[%emt 0:04:40]} 15. Qg3 {[%emt 0:01:44]} b5 {[%emt 0:15:51]} 16. Rd1 {[%emt 0:04:41]} Qc7 {[%emt 0:01:35]} 17. h4 {[%emt 0:00:23]} Bb7 {[%emt 0:04:56]} 18. Bf4 {[%emt 0:01:20]} Bd5 {[%emt 0:05:14]} 19. Nxh7 {[%emt 0:06:29]} O-O-O {[%emt 0:12:14]} 20. Nf6 {[%emt 0:02:41]} Bb7 {[%emt 0:02:48]} 21. f3 {[%emt 0:13:59]} c4 {[%emt 0:21:32]} 22. Rd2 {[%emt 0:04:33]} d6 {[%emt 0:00:00]} 23. Rad1 {[%emt 0:07:45]} Qc5+ {[%emt 0:00:00]} 24. Kf1 {[%emt 0:01:13]} Bc6 {[%emt 0:00:00]} 25. Qxg6 {[%emt 0:06:59]} Rxh4 {[%emt 0:00:00]} 26. Ng8 {[%emt 0:00:18]} Bf8 {[%emt 0:00:00]} 27. Bg3 {[%emt 0:02:20]} Rh8 {[%emt 0:00:39]} 28. Qxe6+ {[%emt 0:03:07]} Bd7 {[%emt 0:00:54]} 29. Ne7+ {[%emt 0:01:21]} Bxe7 {[%emt 0:01:08]} 30. Qxe7 {[%emt 0:00:01]} Qe3 {[%emt 0:01:10]} 31. Bh4 {[%emt 0:00:01]} Qh6 {[%emt 0:00:36]} 32. Bg5 {[%emt 0:01:53]} 1-0

[Event "Asian Continental-ch Open 2019"]
[Site "XingTai"]
[Date "2019.06.14"]
[Round "8.1"]
[White "Sethuraman, S.P."]
[Black "Gupta, Abhijeet"]
[Result "1-0"]
[ECO "D92"]
[WhiteElo "2613"]
[BlackElo "2606"]
[Annotator "ChessBase"]
[PlyCount "145"]
[EventDate "2019.06.06"]
[EventType "swiss"]
[EventCountry "CHN"]
[SourceTitle "playchess.com"]
[Source "ChessBase"]
[SourceQuality "1"]
[TimeControl "40/5400+30:1800+30"]

1. d4 {[%emt 0:00:00]} Nf6 {[%emt 0:00:00]} 2. c4 {[%emt 0:00:04]} g6 {[%emt 0:00:00]} 3. Nc3 {[%emt 0:00:05]} d5 {[%emt 0:00:00]} 4. Bf4 {[%emt 0:00:07]} Bg7 {[%emt 0:00:01]} 5. e3 {[%emt 0:00:05]} O-O {[%emt 0:00:31]} 6. Rc1 {[%emt 0:00:10]} c5 {[%emt 0:05:11]} 7. dxc5 {[%emt 0:00:17]} Be6 {[%emt 0:03:20]} 8. Nf3 {[%emt 0:00:23]} Nc6 {[%emt 0:00:39]} 9. Be2 {[%emt 0:00:09]} dxc4 {[%emt 0:08:42]} 10. Ng5 {[%emt 0:32:10]} Nd5 {[%emt 0:02:25]} 11. Nxe6 {[%emt 0:11:39]} fxe6 {[%emt 0:00:08]} 12. Bxc4 {[%emt 0:00:16]} Bxc3+ {[%emt 0:01:52]} 13. bxc3 {[%emt 0:00:10]} Nxf4 {[%emt 0:00:04]} 14. exf4 {[%emt 0:00:08]} Qxd1+ {[%emt 0:01:38]} 15. Rxd1 {[%emt 0:00:11]} Rxf4 {[%emt 0:00:07]} 16. Bxe6+ {[%emt 0:00:05]} Kg7 {[%emt 0:00:02]} 17. O-O {[%emt 0:00:31]} Rd8 {[%emt 0:00:17]} 18. Bd5 {[%emt 0:10:44]} Na5 {[%emt 0:07:16]} 19. Rfe1 {[%emt 0:01:29]} Kf8 {[%emt 0:00:09]} 20. g3 {[%emt 0:06:19]} Rf6 {[%emt 0:00:08]} 21. h4 {[%emt 0:06:43]} Rd7 {[%emt 0:05:29]} 22. Be4 {[%emt 0:06:06]} Ke8 {[%emt 0:03:28]} 23. Rxd7 {[%emt 0:01:01]} Kxd7 {[%emt 0:00:04]} 24. Rd1+ {[%emt 0:00:05]} Kc7 {[%emt 0:00:12]} 25. Rd5 {[%emt 0:00:15]} Re6 {[%emt 0:07:41]} 26. f3 {[%emt 0:02:55]} Nc6 {[%emt 0:01:00]} 27. h5 {[%emt 0:02:55]} Ne5 {[%emt 0:03:50]} 28. hxg6 {[%emt 0:01:39]} hxg6 {[%emt 0:00:10]} 29. Kg2 {[%emt 0:04:40]} Nd7 {[%emt 0:02:30]} 30. Rg5 {[%emt 0:00:09]} Nf8 {[%emt 0:00:39]} 31. a4 {[%emt 0:08:22]} Ra6 {[%emt 0:01:55]} 32. Bc2 {[%emt 0:00:06]} Ra5 {[%emt 0:01:13]} 33. f4 {[%emt 0:00:26]} Nd7 {[%emt 0:04:32]} 34. c6 {[%emt 0:00:33]} Rxg5 {[%emt 0:00:11]} 35. fxg5 {[%emt 0:00:08]} Nf8 {[%emt 0:09:52]} 36. cxb7 {[%emt 0:00:07]} Kxb7 {[%emt 0:00:05]} 37. Kf3 {[%emt 0:01:08]} Kc6 {[%emt 0:00:03]} 38. Ke4 {[%emt 0:02:51]} Kc5 {[%emt 0:04:59]} 39. Bb3 {[%emt 0:01:42]} Nh7 {[%emt 0:01:14]} 40. Kf4 {[%emt 0:00:00]} Kd6 {[%emt 0:00:00]} 41. Bf7 {[%emt 0:03:24]} e5+ {[%emt 0:10:45]} 42. Kg4 {[%emt 0:04:24]} Nf8 {[%emt 0:00:08]} 43. Kf3 {[%emt 0:03:05]} Ke7 {[%emt 0:03:08]} 44. Bg8 {[%emt 0:00:04]} Nd7 {[%emt 0:01:07]} 45. Ke4 {[%emt 0:07:38]} Kd6 {[%emt 0:00:43]} 46. a5 {[%emt 0:04:08]} Nc5+ {[%emt 0:00:04]} 47. Ke3 {[%emt 0:00:11]} Nb7 {[%emt 0:02:44]} 48. Bf7 {[%emt 0:03:58]} Nxa5 {[%emt 0:00:08]} 49. Bxg6 {[%emt 0:00:05]} Nb7 {[%emt 0:00:51]} 50. Ke4 {[%emt 0:02:52]} Nc5+ {[%emt 0:06:14]} 51. Kf5 {[%emt 0:00:04]} a5 {[%emt 0:02:01]} 52. Bh5 {[%emt 0:02:54]} a4 {[%emt 0:04:48]} 53. g6 {[%emt 0:00:08]} Ne6 {[%emt 0:02:13]} 54. Bd1 {[%emt 0:00:23]} a3 {[%emt 0:00:44]} 55. Bb3 {[%emt 0:00:05]} Ng7+ {[%emt 0:00:55]} 56. Ke4 {[%emt 0:00:37]} Nh5 {[%emt 0:03:23]} 57. g4 {[%emt 0:00:33]} Ng7 {[%emt 0:00:05]} 58. Ba2 {[%emt 0:01:06]} Ne8 {[%emt 0:05:05]} 59. c4 {[%emt 0:02:05]} Ke6 {[%emt 0:01:22]} 60. c5+ {[%emt 0:01:00]} Kf6 {[%emt 0:00:03]} 61. Bf7 {[%emt 0:00:18]} Ng7 {[%emt 0:17:12]} 62. c6 {[%emt 0:01:09]} Ne8 {[%emt 0:00:19]} 63. g5+ {[%emt 0:00:27]} Kg7 {[%emt 0:01:01]} 64. Kxe5 {[%emt 0:00:04]} Nc7 {[%emt 0:00:27]} 65. Kd6 {[%emt 0:00:49]} Na6 {[%emt 0:00:12]} 66. Ke7 {[%emt 0:01:10]} Nb8 {[%emt 0:02:09]} 67. c7 {[%emt 0:00:13]} Nc6+ {[%emt 0:00:01]} 68. Kd6 {[%emt 0:00:25]} Na7 {[%emt 0:00:06]} 69. Kc5 {[%emt 0:00:22]} Nc8 {[%emt 0:00:17]} 70. Kb4 {[%emt 0:00:47]} Nd6 {[%emt 0:00:36]} 71. Kb3 {[%emt 0:00:35]} Kf8 {[%emt 0:01:34]} 72. Be6 {[%emt 0:00:13]} Kg7 {[%emt 0:00:05]} 73. Bf5 {[%emt 0:00:07]} 1-0

[Event "Asian Continental-ch Open 2019"]
[Site "XingTai"]
[Date "2019.06.14"]
[Round "8.9"]
[White "Idani, Pouya"]
[Black "Nihal Sarin"]
[Result "1/2-1/2"]
[ECO "C67"]
[WhiteElo "2597"]
[BlackElo "2606"]
[Annotator "ChessBase"]
[PlyCount "73"]
[EventDate "2019.06.06"]
[EventType "swiss"]
[EventCountry "CHN"]
[SourceTitle "playchess.com"]
[Source "ChessBase"]
[SourceQuality "1"]
[TimeControl "40/5400+30:1800+30"]

1. e4 {[%emt 0:00:00]} e5 {[%emt 0:00:10]} 2. Nf3 {[%emt 0:00:00]} Nc6 {[%emt 0:00:04]} 3. Bb5 {[%emt 0:00:00]} Nf6 {[%emt 0:00:06]} 4. O-O {[%emt 0:00:00]} Nxe4 {[%emt 0:00:10]} 5. Re1 {[%emt 0:00:00]} Nd6 {[%emt 0:00:05]} 6. Nxe5 {[%emt 0:00:00]} Be7 {[%emt 0:00:06]} 7. Bf1 {[%emt 0:00:07]} Nxe5 {[%emt 0:00:48]} 8. Rxe5 {[%emt 0:00:05]} O-O {[%emt 0:00:12]} 9. d4 {[%emt 0:00:03]} Bf6 {[%emt 0:00:42]} 10. Re1 {[%emt 0:00:13]} Re8 {[%emt 0:00:10]} 11. Rxe8+ {[%emt 0:00:46]} Nxe8 {[%emt 0:00:50]} 12. d5 {[%emt 0:00:04]} d6 {[%emt 0:09:05]} 13. c3 {[%emt 0:01:41]} c6 {[%emt 0:15:51]} 14. Na3 {[%emt 0:00:18]} Nc7 {[%emt 0:09:30]} 15. dxc6 {[%emt 0:01:41]} bxc6 {[%emt 0:00:08]} 16. Be3 {[%emt 0:01:34]} Ne6 {[%emt 0:02:34]} 17. Qd2 {[%emt 0:04:35]} d5 {[%emt 0:01:52]} 18. Rd1 {[%emt 0:01:17]} Bb7 {[%emt 0:05:41]} 19. Nc2 {[%emt 0:17:20]} c5 {[%emt 0:03:07]} 20. b4 {[%emt 0:00:18]} Rc8 {[%emt 0:10:04]} 21. bxc5 {[%emt 0:00:11]} Nxc5 {[%emt 0:12:00]} 22. Bxc5 {[%emt 0:00:06]} Rxc5 {[%emt 0:00:04]} 23. Nd4 {[%emt 0:00:04]} g6 {[%emt 0:05:15]} 24. Re1 {[%emt 0:03:43]} Bc8 {[%emt 0:06:27]} 25. Qe3 {[%emt 0:05:26]} Rc7 {[%emt 0:00:54]} 26. Qf3 {[%emt 0:00:05]} Kg7 {[%emt 0:00:26]} 27. h3 {[%emt 0:03:28]} a6 {[%emt 0:07:38]} 28. Rd1 {[%emt 0:09:54]} Qe7 {[%emt 0:00:24]} 29. Rd3 {[%emt 0:07:36]} Qa3 {[%emt 0:01:19]} 30. Qg3 {[%emt 0:09:18]} Re7 {[%emt 0:01:17]} 31. Qf4 {[%emt 0:02:36]} Be5 {[%emt 0:04:36]} 32. Qd2 {[%emt 0:00:40]} Bf6 {[%emt 0:01:48]} 33. Nc6 {[%emt 0:05:08]} Rc7 {[%emt 0:01:11]} 34. Nd4 {[%emt 0:06:37]} Bxd4 {[%emt 0:01:20]} 35. cxd4 {[%emt 0:03:53]} Qc1 {[%emt 0:00:01]} 36. Qe2 {[%emt 0:01:34]} Qf4 {[%emt 0:00:02]} 37. Rd1 {[%emt 0:08:31]} 1/2-1/2

[Event "Asian Continental-ch Open 2019"]
[Site "XingTai"]
[Date "2019.06.14"]
[Round "8.10"]
[White "Vaibhav, Suri"]
[Black "Sengupta, Deep"]
[Result "1/2-1/2"]
[ECO "C54"]
[WhiteElo "2599"]
[BlackElo "2559"]
[Annotator "ChessBase"]
[PlyCount "67"]
[EventDate "2019.06.06"]
[EventType "swiss"]
[EventCountry "CHN"]
[SourceTitle "playchess.com"]
[Source "ChessBase"]
[SourceQuality "1"]
[TimeControl "40/5400+30:1800+30"]

1. e4 {[%emt 1:30:30]} e5 {[%emt 0:00:00]} 2. Nf3 {[%emt 0:00:30]} Nc6 3. Bc4 {[%emt 0:00:00]} Nf6 {[%emt 1:31:30]} 4. d3 {[%emt 0:00:00]} Bc5 {[%emt 0:00:00]} 5. O-O {[%emt 0:00:00]} a6 {[%emt 0:00:00]} 6. c3 {[%emt 0:00:00]} Ba7 {[%emt 0:00:00]} 7. a4 {[%emt 0:00:00]} d6 {[%emt 0:00:00]} 8. Re1 {[%emt 0:00:00]} h6 {[%emt 0:00:00]} 9. Nbd2 {[%emt 0:00:00]} O-O {[%emt 0:00:00]} 10. h3 {[%emt 0:00:00]} Ne7 {[%emt 0:00:00]} 11. Bb3 {[%emt 0:00:00]} Ng6 {[%emt 0:00:00]} 12. d4 {[%emt 0:00:00]} Re8 {[%emt 0:00:00]} 13. Bc2 {[%emt 0:00:00]} Be6 {[%emt 0:00:00]} 14. Nf1 {[%emt 0:00:00]} c6 {[%emt 0:00:00]} 15. Ng3 {[%emt 0:00:00]} Qc7 {[%emt 0:00:00]} 16. Be3 {[%emt 0:00:00]} Rad8 {[%emt 0:00:00]} 17. Qc1 {[%emt 0:00:00]} Bb8 {[%emt 0:00:00]} 18. a5 {[%emt 0:00:00]} Qd7 {[%emt 0:00:00]} 19. Qd2 {[%emt 0:00:00]} d5 {[%emt 0:00:00]} 20. Nxe5 {[%emt 0:00:00]} Nxe5 {[%emt 0:00:00]} 21. dxe5 {[%emt 0:00:00]} dxe4 {[%emt 0:00:00]} 22. Qxd7 {[%emt 0:00:00]} Nxd7 {[%emt 0:00:00]} 23. Nxe4 {[%emt 0:00:00]} Bxe5 {[%emt 0:00:00]} 24. Ra4 {[%emt 0:00:00]} Bd5 {[%emt 0:00:00]} 25. Rd1 {[%emt 0:00:00]} f5 {[%emt 0:00:00]} 26. Nd2 {[%emt 0:00:31]} Rf8 {[%emt 0:00:00]} 27. Nc4 {[%emt 0:02:17]} f4 {[%emt 0:00:00]} 28. Bc1 {[%emt 0:00:42]} Bc7 {[%emt 0:00:00]} 29. Nb6 {[%emt 0:00:23]} Nxb6 {[%emt 0:02:14]} 30. axb6 {[%emt 0:00:02]} Bxb6 {[%emt 0:00:21]} 31. Rb4 {[%emt 0:00:58]} Bc5 {[%emt 0:03:22]} 32. Rxb7 {[%emt 0:00:02]} Rde8 {[%emt 0:00:19]} 33. Bd3 {[%emt 0:04:09]} a5 {[%emt 0:01:50]} 34. c4 {[%emt 0:04:13]} 1/2-1/2

[Event "Asian Continental-ch Open 2019"]
[Site "XingTai"]
[Date "2019.06.14"]
[Round "8.11"]
[White "Aravindh, Chithambaram VR."]
[Black "Sadhwani, Raunak"]
[Result "1-0"]
[ECO "B12"]
[WhiteElo "2598"]
[BlackElo "2482"]
[Annotator "ChessBase"]
[PlyCount "71"]
[EventDate "2019.06.06"]
[EventType "swiss"]
[EventCountry "CHN"]
[SourceTitle "playchess.com"]
[Source "ChessBase"]
[SourceQuality "1"]
[TimeControl "40/5400+30:1800+30"]

1. e4 {[%emt 0:00:00]} c6 {[%emt 0:00:00]} 2. d4 {[%emt 0:00:00]} d5 {[%emt 0:00:00]} 3. Bd3 {[%emt 0:00:08]} dxe4 {[%emt 0:02:27]} 4. Bxe4 {[%emt 0:00:05]} Nf6 {[%emt 0:01:01]} 5. Bf3 {[%emt 0:00:07]} Bf5 {[%emt 0:01:51]} 6. g4 {[%emt 0:00:22]} Bg6 {[%emt 0:02:46]} 7. Ne2 {[%emt 0:04:08]} Nbd7 {[%emt 0:03:59]} 8. Nbc3 {[%emt 0:00:22]} e5 {[%emt 0:05:43]} 9. g5 {[%emt 0:02:16]} Nd5 {[%emt 0:03:48]} 10. Ne4 {[%emt 0:05:14]} Be7 {[%emt 0:14:16]} 11. h4 {[%emt 0:00:28]} f5 {[%emt 0:00:57]} 12. N4g3 {[%emt 0:03:23]} O-O {[%emt 0:09:08]} 13. c4 {[%emt 0:13:03]} Nb4 {[%emt 0:10:54]} 14. O-O {[%emt 0:12:28]} f4 {[%emt 0:06:55]} 15. Ne4 {[%emt 0:00:32]} h6 {[%emt 0:05:28]} 16. Qb3 {[%emt 0:12:02]} hxg5 {[%emt 0:09:44]} 17. hxg5 {[%emt 0:00:11]} c5 {[%emt 0:01:56]} 18. Rd1 {[%emt 0:11:03]} exd4 {[%emt 0:04:11]} 19. Nxf4 {[%emt 0:00:59]} Ne5 {[%emt 0:00:32]} 20. Bg2 {[%emt 0:01:36]} d3 {[%emt 0:04:31]} 21. Qc3 {[%emt 0:19:34]} Qd4 {[%emt 0:06:51]} 22. Nxg6 {[%emt 0:03:36]} Nxg6 {[%emt 0:00:08]} 23. Rb1 {[%emt 0:00:19]} Rad8 {[%emt 0:01:56]} 24. Be3 {[%emt 0:00:40]} Qxc3 {[%emt 0:00:52]} 25. bxc3 {[%emt 0:00:20]} Nc2 {[%emt 0:00:03]} 26. Rxb7 {[%emt 0:02:12]} Nxe3 {[%emt 0:00:15]} 27. fxe3 {[%emt 0:00:04]} Rfe8 {[%emt 0:00:15]} 28. Rxa7 {[%emt 0:05:08]} Ne5 {[%emt 0:00:04]} 29. Nf2 {[%emt 0:00:28]} Bxg5 {[%emt 0:02:25]} 30. Bd5+ {[%emt 0:00:05]} Rxd5 {[%emt 0:00:31]} 31. cxd5 {[%emt 0:00:04]} Bxe3 {[%emt 0:00:35]} 32. Kg2 {[%emt 0:00:09]} d2 {[%emt 0:00:46]} 33. d6 {[%emt 0:01:39]} Nc4 {[%emt 0:01:01]} 34. Re7 {[%emt 0:02:23]} Rd8 {[%emt 0:00:39]} 35. d7 {[%emt 0:01:05]} Kf8 {[%emt 0:00:28]} 36. Re4 {[%emt 0:00:09]} 1-0

[Event "Asian Continental-ch Open 2019"]
[Site "XingTai"]
[Date "2019.06.14"]
[Round "8.12"]
[White "Yakubboev, Nodirbek"]
[Black "Chanda, Sandipan"]
[Result "1/2-1/2"]
[ECO "A85"]
[WhiteElo "2587"]
[BlackElo "2511"]
[Annotator "ChessBase"]
[PlyCount "74"]
[EventDate "2019.06.06"]
[EventType "swiss"]
[EventCountry "CHN"]
[SourceTitle "playchess.com"]
[Source "ChessBase"]
[SourceQuality "1"]
[TimeControl "40/5400+30:1800+30"]

1. d4 {[%emt 0:00:00]} f5 {[%emt 0:00:00]} 2. c4 {[%emt 0:00:38]} Nf6 {[%emt 0:00:03]} 3. Nc3 {[%emt 0:00:10]} e6 {[%emt 0:00:10]} 4. Nf3 {[%emt 0:00:41]} Bb4 {[%emt 0:00:12]} 5. Bd2 {[%emt 0:04:43]} O-O {[%emt 0:00:21]} 6. g3 {[%emt 0:00:53]} d5 {[%emt 0:00:10]} 7. Qb3 {[%emt 0:02:27]} Be7 {[%emt 0:00:15]} 8. Bg2 {[%emt 0:00:43]} c6 {[%emt 0:00:12]} 9. O-O {[%emt 0:01:41]} Nbd7 {[%emt 0:00:27]} 10. Bf4 {[%emt 0:10:09]} Nb6 {[%emt 0:07:41]} 11. Ne5 {[%emt 0:03:39]} dxc4 {[%emt 0:05:26]} 12. Qd1 {[%emt 0:04:09]} Nfd7 {[%emt 0:13:49]} 13. e4 {[%emt 0:11:34]} Nxe5 {[%emt 0:00:27]} 14. Bxe5 {[%emt 0:00:18]} Bd7 {[%emt 0:04:17]} 15. Qe2 {[%emt 0:07:17]} Be8 {[%emt 0:02:31]} 16. Rad1 {[%emt 0:01:34]} Bf7 {[%emt 0:05:15]} 17. f4 {[%emt 0:03:50]} Bb4 {[%emt 0:01:06]} 18. g4 {[%emt 0:02:19]} Bxc3 {[%emt 0:05:38]} 19. gxf5 {[%emt 0:04:07]} exf5 {[%emt 0:00:25]} 20. bxc3 {[%emt 0:01:09]} Qh4 {[%emt 0:00:48]} 21. d5 {[%emt 0:05:10]} fxe4 {[%emt 0:07:47]} 22. dxc6 {[%emt 0:02:14]} bxc6 {[%emt 0:00:17]} 23. Bxe4 {[%emt 0:01:11]} Bd5 {[%emt 0:01:12]} 24. Bxd5+ {[%emt 0:01:08]} cxd5 {[%emt 0:01:13]} 25. Qg2 {[%emt 0:03:11]} Rf7 {[%emt 0:00:47]} 26. Rf3 {[%emt 0:02:33]} Qh5 {[%emt 0:05:40]} 27. Rdf1 {[%emt 0:02:52]} Nd7 {[%emt 0:04:23]} 28. Bd4 {[%emt 0:05:33]} Nf6 {[%emt 0:01:49]} 29. Rg3 {[%emt 0:02:30]} Qf5 {[%emt 0:00:25]} 30. Bxf6 {[%emt 0:01:57]} Qxf6 {[%emt 0:00:12]} 31. Qxd5 {[%emt 0:00:11]} Qb6+ {[%emt 0:01:03]} 32. Rf2 {[%emt 0:05:01]} Rd8 {[%emt 0:07:09]} 33. Qxc4 {[%emt 0:00:28]} Rd2 {[%emt 0:00:14]} 34. Rgf3 {[%emt 0:00:51]} Qg6+ {[%emt 0:01:36]} 35. Kh1 {[%emt 0:01:27]} Qb1+ {[%emt 0:01:10]} 36. Kg2 {[%emt 0:00:16]} Qg6+ {[%emt 0:00:05]} 37. Kh1 {[%emt 0:01:14]} Qb1+ {[%emt 0:00:10]} 1/2-1/2

[Event "Asian Continental-ch Open 2019"]
[Site "XingTai"]
[Date "2019.06.14"]
[Round "8.13"]
[White "Xu, Xiangyu"]
[Black "Vignesh N R"]
[Result "1/2-1/2"]
[ECO "E90"]
[WhiteElo "2583"]
[BlackElo "2459"]
[Annotator "ChessBase"]
[PlyCount "64"]
[EventDate "2019.06.06"]
[EventType "swiss"]
[EventCountry "CHN"]
[SourceTitle "playchess.com"]
[Source "ChessBase"]
[SourceQuality "1"]
[TimeControl "40/5400+30:1800+30"]

1. d4 {[%emt 0:00:00]} Nf6 {[%emt 0:00:07]} 2. c4 {[%emt 0:00:00]} g6 {[%emt 0:00:28]} 3. Nc3 {[%emt 0:00:00]} Bg7 {[%emt 0:00:07]} 4. e4 {[%emt 0:00:00]} d6 {[%emt 0:00:06]} 5. Nf3 {[%emt 0:00:00]} O-O {[%emt 0:00:08]} 6. h3 {[%emt 0:00:00]} e5 {[%emt 0:06:46]} 7. d5 {[%emt 0:00:10]} a5 {[%emt 0:00:03]} 8. g4 {[%emt 0:02:24]} Na6 {[%emt 0:00:30]} 9. Be3 {[%emt 0:00:09]} Nd7 {[%emt 0:06:01]} 10. Rg1 {[%emt 0:09:26]} Ndc5 {[%emt 0:03:07]} 11. h4 {[%emt 0:00:44]} Kh8 {[%emt 0:03:27]} 12. g5 {[%emt 0:04:32]} f5 {[%emt 0:03:37]} 13. gxf6 {[%emt 0:01:21]} Qxf6 {[%emt 0:00:23]} 14. Be2 {[%emt 0:01:36]} Nb4 {[%emt 0:11:18]} 15. Rg3 {[%emt 0:11:05]} Bd7 {[%emt 0:00:13]} 16. Kf1 {[%emt 0:11:18]} Qe7 {[%emt 0:08:39]} 17. a3 {[%emt 0:03:11]} Nba6 {[%emt 0:00:46]} 18. Qc2 {[%emt 0:02:02]} a4 {[%emt 0:04:29]} 19. Kg2 {[%emt 0:00:15]} Bf6 {[%emt 0:07:22]} 20. Rh1 {[%emt 0:00:58]} Rg8 {[%emt 0:01:36]} 21. Bh6 {[%emt 0:09:48]} Nb3 {[%emt 0:02:21]} 22. Bd1 {[%emt 0:01:09]} Nac5 {[%emt 0:08:29]} 23. Qe2 {[%emt 0:00:56]} Bg7 {[%emt 0:06:42]} 24. Bg5 {[%emt 0:00:25]} Bf6 {[%emt 0:00:00]} 25. Qe3 {[%emt 0:00:39]} Nd4 {[%emt 0:06:03]} 26. Bh6 {[%emt 0:02:50]} Nxf3 {[%emt 0:03:02]} 27. Qxf3 {[%emt 0:03:03]} g5 {[%emt 0:02:24]} 28. hxg5 {[%emt 0:06:38]} Bxg5 {[%emt 0:00:01]} 29. Bxg5 {[%emt 0:03:35]} Rxg5 {[%emt 0:00:02]} 30. Qe3 {[%emt 0:00:16]} Rag8 {[%emt 0:00:36]} 31. Rh5 {[%emt 0:01:23]} Rxh5 {[%emt 0:04:06]} 32. Bxh5 {[%emt 0:00:07]} Rxg3+ {[%emt 0:01:49]} 1/2-1/2

[Event "Asian Continental-ch Open 2019"]
[Site "XingTai"]
[Date "2019.06.14"]
[Round "8.14"]
[White "Dai, Changren"]
[Black "Praggnanandhaa R"]
[Result "1-0"]
[ECO "B63"]
[WhiteElo "2480"]
[BlackElo "2537"]
[Annotator "ChessBase"]
[PlyCount "81"]
[EventDate "2019.06.06"]
[EventType "swiss"]
[EventCountry "CHN"]
[SourceTitle "playchess.com"]
[Source "ChessBase"]
[SourceQuality "1"]
[TimeControl "40/5400+30:1800+30"]

1. e4 {[%emt 0:00:00]} c5 {[%emt 0:00:00]} 2. Nf3 {[%emt 0:00:00]} Nc6 {[%emt 0:00:00]} 3. d4 {[%emt 0:00:02]} cxd4 {[%emt 0:00:02]} 4. Nxd4 {[%emt 0:00:06]} Nf6 {[%emt 0:00:04]} 5. Nc3 {[%emt 0:00:09]} d6 {[%emt 0:00:05]} 6. Bg5 {[%emt 0:00:51]} e6 {[%emt 0:00:06]} 7. Qd2 {[%emt 0:00:06]} a6 {[%emt 0:00:05]} 8. O-O-O {[%emt 0:00:27]} Be7 {[%emt 0:00:04]} 9. Bxf6 {[%emt 0:06:20]} gxf6 {[%emt 0:03:01]} 10. f4 {[%emt 0:00:41]} Nxd4 {[%emt 0:08:06]} 11. Qxd4 {[%emt 0:00:08]} Qa5 {[%emt 0:00:25]} 12. Be2 {[%emt 0:13:30]} Bd7 {[%emt 0:12:36]} 13. f5 {[%emt 0:04:01]} h5 {[%emt 0:03:04]} 14. Bf3 {[%emt 0:05:50]} Rc8 {[%emt 0:04:15]} 15. Kb1 {[%emt 0:02:09]} b5 {[%emt 0:16:46]} 16. fxe6 {[%emt 0:08:54]} fxe6 {[%emt 0:00:12]} 17. Ne2 {[%emt 0:12:40]} b4 {[%emt 0:04:24]} 18. Nf4 {[%emt 0:06:18]} Qg5 {[%emt 0:06:46]} 19. Qf2 {[%emt 0:04:36]} h4 {[%emt 0:04:45]} 20. h3 {[%emt 0:02:57]} Qc5 {[%emt 0:04:24]} 21. Qd2 {[%emt 0:01:47]} a5 {[%emt 0:03:52]} 22. Bg4 {[%emt 0:01:43]} Kf7 {[%emt 0:00:43]} 23. Rhf1 {[%emt 0:02:50]} Rc7 {[%emt 0:02:28]} 24. Nd3 {[%emt 0:05:39]} Qb5 {[%emt 0:01:02]} 25. Rf3 {[%emt 0:09:53]} a4 {[%emt 0:04:08]} 26. Nxb4 {[%emt 0:02:54]} Rc4 {[%emt 0:02:11]} 27. a3 {[%emt 0:00:17]} Rxe4 {[%emt 0:01:36]} 28. Rd3 {[%emt 0:03:33]} Qe5 {[%emt 0:08:52]} 29. Bf3 {[%emt 0:00:12]} Rc4 {[%emt 0:00:29]} 30. Re1 {[%emt 0:02:10]} Qa5 {[%emt 0:00:31]} 31. Qe2 {[%emt 0:00:57]} Bf8 {[%emt 0:05:14]} 32. Re3 {[%emt 0:01:00]} Rf4 {[%emt 0:01:40]} 33. Rxe6 {[%emt 0:00:41]} Bxe6 {[%emt 0:00:11]} 34. Qxe6+ {[%emt 0:00:03]} Kg7 {[%emt 0:00:06]} 35. Nd5 {[%emt 0:00:51]} Rf5 {[%emt 0:00:08]} 36. Re2 {[%emt 0:01:57]} Rhh5 {[%emt 0:00:51]} 37. Ne7 {[%emt 0:01:20]} Bxe7 {[%emt 0:00:32]} 38. Qxe7+ {[%emt 0:00:01]} Kh6 {[%emt 0:00:15]} 39. Qf8+ {[%emt 0:00:10]} Kg6 {[%emt 0:00:05]} 40. Qg8+ {[%emt 0:00:00]} Kh6 {[%emt 0:00:00]} 41. Re7 {[%emt 0:00:27]} 1-0